fUST/lending_fUST_20260111
["ID","MTS","AMOUNT","RATE_DAILY","PERIOD"]
[401332797,1768143043733,-1000.0,0.00013821,2]
[401332798,1768143043744,-1000.0,0.00013821,2]
[401332799,1768143043755,-1000.0,0.00013821,2]
[401332800,1768143043767,-1001.21467235,0.00013821,2]
[401332801,1768143043778,-1000.0,0.00013821,2]
[401332802,1768143043789,-1000.0,0.00013821,2]
[401332803,1768143043800,-1000.0,0.00013821,2]
[401332804,1768143043811,-877.75810228,0.00013821,2]
[401332805,1768143043822,-973.2526551,0.00013821,2]
[401332806,1768143043833,-204.07351011,0.00013821,2]
[401332807,1768143043845,-1000.0,0.00013821,2]
[401332808,1768143043856,-500.76042299,0.00013821,2]
[401332809,1768143043867,-1000.0,0.00013821,2]
[401332810,1768143043878,-1000.0,0.00013821,2]
[401332811,1768143043889,-1000.0,0.00013821,2]
[401332812,1768143043902,-500.0,0.00013836,2]
[401332813,1768143044014,-2314.60090664,0.00013877,2]
[401332814,1768143044058,-500.0,0.00013973,2]
[401332815,1768143044069,-500.0,0.0001411,2]
[401332816,1768143044078,-157.99,0.000142,2]
[401332817,1768143044087,-600.0,0.00014221,2]
[401332818,1768143044097,-1000.0,0.00014247,2]
[401332819,1768143044107,-1000.0,0.00014247,2]
[401332820,1768143044118,-1000.0,0.00014247,2]
[401332821,1768143044129,-1000.0,0.00014247,2]
[401332822,1768143044140,-1000.0,0.00014247,2]
[401332823,1768143044150,-1000.0,0.00014247,2]
[401332824,1768143044160,-1000.0,0.00014247,2]
[401332825,1768143044170,-581.34216933,0.00014247,2]
[401332826,1768143044180,-1000.31275461,0.00014247,2]
[401332827,1768143044190,-1000.0,0.00014247,2]
[401332828,1768143044199,-875.35271766,0.00014247,2]
[401332829,1768143044210,-504.32249359,0.00014247,2]
[401332830,1768143044220,-1000.0,0.00014247,2]
[401332831,1768143044229,-1000.0,0.00014247,2]
[401332832,1768143044239,-1000.0,0.00014247,2]
[401332833,1768143044250,-159.05967354,0.00014247,2]
[401332834,1768143044261,-1000.0,0.00014247,2]
[401332835,1768143044270,-1029.61129365,0.00014247,2]
[401332836,1768143044280,-1000.0,0.00014247,2]
[401332837,1768143044290,-783.84380117,0.00014247,2]
[401332838,1768143044299,-192.77974704,0.00014247,2]
[401332839,1768143044309,-1000.0,0.00014247,2]
[401332840,1768143044319,-1000.0,0.00014247,2]
[401332841,1768143044328,-1000.0,0.00014247,2]
[401332842,1768143044338,-1000.0,0.00014247,2]
[401332843,1768143044349,-1000.0,0.00014247,2]
[401332844,1768143044358,-1000.0,0.00014247,2]
[401332845,1768143044368,-1000.0,0.00014247,2]
[401332846,1768143044377,-1000.0,0.00014247,2]
[401332847,1768143044387,-1000.0,0.00014247,2]
[401332848,1768143044396,-969.53593685,0.00014247,2]
[401332849,1768143044406,-1000.0,0.00014247,2]
[401332850,1768143044416,-611.85295008,0.00014247,2]
[401332851,1768143044429,-501.52224721,0.00014247,2]
[401332852,1768143044442,-1000.0,0.00014247,2]
[401332853,1768143044453,-1000.0,0.00014247,2]
[401332854,1768143044463,-671.67593478,0.00014247,2]
[401332855,1768143044474,-1000.0,0.00014247,2]
[401332856,1768143044483,-710.18768542,0.00014247,2]
[401332857,1768143044494,-1000.0,0.00014247,2]
[401332858,1768143044504,-1000.0,0.00014247,2]
[401332859,1768143044512,-1000.0,0.00014247,2]
[401332860,1768143044520,-1000.0,0.00014247,2]
[401332861,1768143044528,-1000.0,0.00014247,2]
[401332862,1768143044536,-1000.0,0.00014247,2]
[401332863,1768143044545,-1000.0,0.00014247,2]
[401332864,1768143044554,-1000.0,0.00014247,2]
[401332865,1768143044563,-1000.0,0.00014247,2]
[401332866,1768143044572,-1000.0,0.00014247,2]
[401332867,1768143044581,-1000.0,0.00014247,2]
[401332868,1768143044590,-1000.0,0.00014247,2]
[401332869,1768143044599,-1000.0,0.00014247,2]
[401332870,1768143044609,-443.77041137,0.00014247,2]
[401332871,1768143044618,-1000.0,0.00014247,2]
[401332872,1768143044626,-500.0,0.00014247,2]
[401332873,1768143044636,-1000.0,0.00014247,2]
[401332874,1768143044647,-505.42705469,0.00014247,2]
[401332875,1768143044657,-638.41119879,0.00014247,2]
[401332876,1768143044666,-1000.0,0.00014247,2]
[401332877,1768143044676,-1000.0,0.00014247,2]
[401332878,1768143044686,-1000.0,0.00014247,2]
[401332879,1768143044696,-500.0,0.00014247,2]
[401332880,1768143044705,-1613.0,0.00014313,2]
[401332881,1768143044714,-1000.0,0.00014368,2]
[401332883,1768143044723,-974.37024763,0.00014368,2]
[401332885,1768143044733,-1500.0,0.00014368,2]
[401332887,1768143044742,-1294.67464356,0.00014368,2]
[401332889,1768143044751,-763.96834089,0.00014368,2]
[401332890,1768143044760,-1500.0,0.00014368,2]
[401332891,1768143044770,-1512.80470062,0.00014368,2]
[401332893,1768143044779,-1151.39515074,0.00014368,2]
[401332895,1768143044788,-1500.0,0.00014368,2]
[401332896,1768143044798,-168.36851892,0.00014368,2]
[401332898,1768143044807,-1500.0,0.00014368,2]
[401332900,1768143044817,-1500.0,0.00014368,2]
[401332902,1768143044827,-1500.0,0.00014368,2]
[401332904,1768143044836,-1500.0,0.00014368,2]
[401332905,1768143044846,-1500.0,0.00014368,2]
[401332907,1768143044856,-1500.0,0.00014368,2]
[401332909,1768143044865,-1500.0,0.00014368,2]
[401332910,1768143044874,-1500.0,0.00014368,2]
[401332911,1768143044883,-1500.0,0.00014368,2]
[401332912,1768143044893,-1500.0,0.00014368,2]
[401332914,1768143044903,-546.83647191,0.00014368,2]
[401332915,1768143044912,-613.91769968,0.00014368,2]
[401332916,1768143044924,-1500.0,0.00014368,2]
[401332917,1768143044934,-1000.80134157,0.00014368,2]
[401332918,1768143044943,-1500.0,0.00014368,2]
[401332919,1768143044953,-1500.0,0.00014368,2]
[401332920,1768143044962,-1500.0,0.00014368,2]
[401332921,1768143044971,-554.02767991,0.00014368,2]
[401332922,1768143044981,-1500.0,0.00014368,2]
[401332923,1768143044990,-1500.0,0.00014368,2]
[401332924,1768143045000,-1500.0,0.00014368,2]
[401332925,1768143045009,-1500.0,0.00014368,2]
[401332926,1768143045019,-1500.0,0.00014368,2]
[401332927,1768143045028,-1500.0,0.00014368,2]
[401332928,1768143045038,-723.48736773,0.00014368,2]
[401332929,1768143045047,-1500.0,0.00014368,2]
[401332930,1768143045057,-500.0,0.00014384,2]
[401332931,1768143045067,-3176.86810454,0.00014399,2]
[401332932,1768143045076,-5000.0,0.0001451,2]
[401332933,1768143045086,-524.3298436,0.00014521,2]
[401332934,1768143045096,-157.99,0.000147,2]
[401332935,1768143045105,-100000.0,0.00014736,2]
[401332936,1768143045115,-1000.0,0.00014765,2]
[401332937,1768143045124,-492.0,0.00014765,2]
[401332938,1768143045134,-900.0,0.00014768,2]
[401332939,1768143045143,-1500.0,0.00014795,2]
[401332940,1768143045153,-1500.0,0.00014795,2]
[401332941,1768143045163,-1163.68911449,0.00014795,2]
[401332942,1768143045172,-500.79965419,0.00014795,2]
[401332943,1768143045181,-1500.0,0.00014795,2]
[401332944,1768143045191,-501.33075681,0.00014795,2]
[401332945,1768143045200,-1500.0,0.00014795,2]
[401332946,1768143045210,-1500.0,0.00014795,2]
[401332947,1768143045219,-1514.12213244,0.00014795,2]
[401332948,1768143045229,-1157.07022264,0.00014795,2]
[401332949,1768143045238,-488.64589349,0.00014795,2]
[401332950,1768143045247,-1500.0,0.00014795,2]
[401332951,1768143045257,-500.0,0.00014795,2]
[401332952,1768143045267,-514.14829436,0.00014795,2]
[401332953,1768143045280,-892.83683556,0.00014795,2]
[401332954,1768143045291,-1500.0,0.00014795,2]
[401332955,1768143045300,-1001.3782102,0.00014795,2]
[401332956,1768143045310,-1500.0,0.00014795,2]
[401332957,1768143045319,-1236.28209818,0.00014795,2]
[401332958,1768143045329,-1500.0,0.00014795,2]
[401332959,1768143045339,-1002.56553603,0.00014795,2]
[401332960,1768143045348,-1500.0,0.00014795,2]
[401332961,1768143045358,-161.478767,0.00014795,2]
[401332962,1768143045367,-502.38932755,0.00014795,2]
[401332963,1768143045377,-1102.53259662,0.00014795,2]
[401332964,1768143045387,-1516.76085072,0.00014795,2]
[401332965,1768143045396,-1500.0,0.00014795,2]
[401332966,1768143045406,-1500.0,0.00014795,2]
[401332967,1768143045415,-1500.0,0.00014795,2]
[401332968,1768143045425,-788.05151213,0.00014795,2]
[401332969,1768143045436,-1500.0,0.00014795,2]
[401332970,1768143045446,-503.75899236,0.00014795,2]
[401332971,1768143045455,-1500.0,0.00014795,2]
[401332972,1768143045465,-1500.0,0.00014795,2]
[401332973,1768143045476,-1500.0,0.00014795,2]
[401332974,1768143045485,-1499.24471264,0.00014795,2]
[401332975,1768143045495,-1500.0,0.00014795,2]
[401332976,1768143045507,-1482.84709438,0.00014795,2]
[401332977,1768143045516,-304.84096496,0.00014795,2]
[401332978,1768143045526,-1500.0,0.00014795,2]
[401332979,1768143045536,-1500.0,0.00014795,2]
[401332980,1768143045545,-1509.97698878,0.00014795,2]
[401332981,1768143045555,-1500.0,0.00014795,2]
[401332982,1768143045564,-1500.0,0.00014795,2]
[401332984,1768143045574,-454.23047744,0.000149,2]
[401332986,1768143045583,-454.23047744,0.000149,2]
[401332988,1768143045592,-454.23047744,0.000149,2]
[401332990,1768143045603,-2000.0,0.00014916,2]
[401332992,1768143045613,-192.00163587,0.00014916,2]
[401332994,1768143045622,-1498.81892914,0.00014916,2]
[401332995,1768143045632,-2000.0,0.00014916,2]
[401332996,1768143045642,-1374.68815725,0.00014916,2]
[401332997,1768143045652,-2000.0,0.00014916,2]
[401332998,1768143045661,-2000.0,0.00014916,2]
[401332999,1768143045671,-2000.0,0.00014916,2]
[401333000,1768143045680,-1374.83618263,0.00014916,2]
[401333001,1768143045690,-2000.0,0.00014916,2]
[401333002,1768143045700,-2000.0,0.00014916,2]
[401333003,1768143045709,-2000.0,0.00014916,2]
[401333004,1768143045719,-1485.3091038,0.00014916,2]
[401333005,1768143045728,-2000.0,0.00014916,2]
[401333006,1768143045738,-1150.76965904,0.00014916,2]
[401333007,1768143045748,-603.18109463,0.00014916,2]
[401333008,1768143045759,-2000.0,0.00014916,2]
[401333009,1768143045768,-1965.81779273,0.00014916,2]
[401333010,1768143045778,-2000.0,0.00014916,2]
[401333011,1768143045787,-2000.0,0.00014916,2]
[401333012,1768143045797,-1502.33157316,0.00014916,2]
[401333013,1768143045807,-2000.0,0.00014916,2]
[401333014,1768143045816,-2000.0,0.00014916,2]
[401333015,1768143045826,-2000.0,0.00014916,2]
[401333016,1768143045836,-437.24241376,0.00014987,2]
[401333017,1768143045846,-1000.0,0.00015,2]
[401333018,1768143045857,-626.25201,0.00015068,2]
[401333019,1768143045868,-800.0,0.00015068,2]
[401333020,1768143045878,-157.99,0.000153,2]
[401333021,1768143045888,-1200.0,0.00015316,2]
[401333022,1768143045898,-1000.0,0.00015342,2]
[401333023,1768143045908,-387.26034109,0.00015342,2]
[401333024,1768143045920,-674.14847626,0.00015342,2]
[401333025,1768143045931,-1089.88646751,0.00015342,2]
[401333026,1768143045941,-2097.05305078,0.00015342,2]
[401333027,1768143045951,-885.09915474,0.00015342,2]
[401333028,1768143045963,-525.59078617,0.00015342,2]
[401333029,1768143045973,-500.0,0.00015342,2]
[401333030,1768143045983,-2140.95571878,0.00015342,2]
[401333031,1768143045993,-2000.0,0.00015342,2]
[401333032,1768143046003,-1144.01857865,0.00015342,2]
[401333033,1768143046014,-2000.0,0.00015342,2]
[401333034,1768143046024,-304.72135436,0.00015342,2]
[401333035,1768143046035,-1004.51727604,0.00015342,2]
[401333036,1768143046045,-1426.89565163,0.00015342,2]
[401333038,1768143046055,-2143.18421046,0.00015342,2]
[401333039,1768143046066,-2000.0,0.00015342,2]
[401333041,1768143046076,-2000.0,0.00015342,2]
[401333042,1768143046086,-1501.01375621,0.00015342,2]
[401333044,1768143046096,-2000.0,0.00015342,2]
[401333046,1768143046105,-2000.0,0.00015342,2]
[401333048,1768143046115,-2000.0,0.00015342,2]
[401333049,1768143046124,-2500.0,0.00015464,2]
[401333052,1768143046134,-2500.0,0.00015464,2]
[401333054,1768143046143,-1466.62413338,0.00015464,2]
[401333055,1768143046152,-2500.0,0.00015464,2]
[401333057,1768143046161,-555.48898116,0.00015464,2]
[401333059,1768143046172,-2500.0,0.00015464,2]
[401333060,1768143046181,-2500.0,0.00015464,2]
[401333062,1768143046190,-281.06836301,0.00015464,2]
[401333063,1768143046200,-170.16316784,0.00015464,2]
[401333065,1768143046211,-2500.0,0.00015464,2]
[401333067,1768143046222,-2500.0,0.00015464,2]
[401333069,1768143046232,-2500.0,0.00015464,2]
[401333070,1768143046244,-2500.0,0.00015464,2]
[401333071,1768143046255,-2500.0,0.00015464,2]
[401333072,1768143046266,-2500.0,0.00015464,2]
[401333073,1768143046277,-2258.0,0.00015744,2]
[401333074,1768143046287,-157.99,0.000158,2]
[401333075,1768143046297,-1500.0,0.00015864,2]
[401333076,1768143046306,-154502.517058,0.0001589,2]
[401333077,1768143046316,-2500.0,0.0001589,2]
[401333078,1768143046326,-2134.65901332,0.0001589,2]
[401333079,1768143046336,-2500.0,0.0001589,2]
[401333080,1768143046347,-2500.0,0.0001589,2]
[401333081,1768143046358,-2500.0,0.0001589,2]
[401333082,1768143046368,-2500.0,0.0001589,2]
[401333083,1768143046378,-2500.0,0.0001589,2]
[401333084,1768143046387,-3000.0,0.00016012,2]
[401333085,1768143046397,-1506.66545063,0.00016012,2]
[401333086,1768143046408,-3000.0,0.00016012,2]
[401333087,1768143046418,-3000.0,0.00016012,2]
[401333088,1768143046427,-3000.0,0.00016012,2]
[401333089,1768143046440,-3000.0,0.00016012,2]
[401333091,1768143046450,-3000.0,0.00016012,2]
[401333093,1768143046459,-3000.0,0.00016012,2]
[401333103,1768143046552,-3000.0,0.00016012,2]
[401333104,1768143046575,-1397.40421659,0.00016012,2]
[401333105,1768143046585,-3000.0,0.00016012,2]
[401333106,1768143046594,-1600.0,0.00016164,2]
[401333107,1768143046603,-1000.0,0.00016241,2]
[401333108,1768143046612,-791.0,0.00016241,2]
[401333109,1768143046621,-157.99,0.000163,2]
[401333110,1768143046631,-1800.0,0.00016412,2]
[401333111,1768143046639,-500.0,0.00016438,2]
[401333112,1768143046648,-500.0,0.00016438,2]
[401333113,1768143046656,-500.0,0.00016438,2]
[401333114,1768143046665,-500.0,0.00016438,2]
[401333115,1768143046674,-500.0,0.00016438,2]
[401333116,1768143046683,-500.0,0.00016438,2]
[401333117,1768143046693,-500.0,0.00016438,2]
[401333118,1768143046704,-247.4409887,0.00016438,2]
[401333119,1768143046714,-594.49843147,0.00016438,2]
[401333120,1768143046725,-164.19129262,0.00016438,2]
[401333121,1768143046735,-3002.60955562,0.00016438,2]
[401333122,1768143046745,-2552.92932298,0.00016438,2]
[401333123,1768143046755,-3000.0,0.00016438,2]
[401333124,1768143046766,-3000.0,0.00016438,2]
[401333125,1768143046776,-3000.0,0.00016438,2]
[401333126,1768143046787,-3000.0,0.00016438,2]
[401333127,1768143046796,-260.15865923,0.00016438,2]
[401333128,1768143046806,-200.0,0.00016473,2]
[401333129,1768143046816,-3500.0,0.0001656,2]
[401333130,1768143046826,-3500.0,0.0001656,2]
[401333131,1768143046836,-3500.0,0.0001656,2]
[401333132,1768143046846,-3500.0,0.0001656,2]
[401333133,1768143046856,-3500.0,0.0001656,2]
[401333134,1768143046867,-3500.0,0.0001656,2]
[401333135,1768143046877,-3442.53787952,0.0001656,2]
[401333136,1768143046887,-3500.0,0.0001656,2]
[401333137,1768143046898,-3500.0,0.0001656,2]
[401333138,1768143046908,-157.99,0.000168,2]
[401333139,1768143046920,-2100.0,0.0001696,2]
[401333140,1768143046930,-3500.0,0.00016986,2]
[401333141,1768143046940,-3500.0,0.00016986,2]
[401333142,1768143046950,-3500.0,0.00016986,2]
[401333143,1768143046959,-3500.0,0.00016986,2]
[401333144,1768143046968,-488.34866991,0.00016987,2]
[401333145,1768143046977,-2462.04250286,0.00017108,2]
[401333146,1768143046986,-4000.0,0.00017108,2]
[401333147,1768143046996,-4000.0,0.00017108,2]
[401333148,1768143047005,-3500.0,0.00017108,2]
[401333149,1768143047014,-4000.0,0.00017108,2]
[401333150,1768143047025,-4000.0,0.00017108,2]
[401333151,1768143047035,-4000.0,0.00017108,2]
[401333152,1768143047046,-4000.0,0.00017108,2]
[401333153,1768143047056,-1901.71937705,0.0001726,2]
[401333154,1768143047066,-157.99,0.000173,2]
[401333155,1768143047076,-1730.0,0.00017318,2]
[401333156,1768143047086,-5000.0,0.00017412,2]
[401333157,1768143047097,-2400.0,0.00017508,2]
[401333158,1768143047108,-1078.16970935,0.00017534,2]
[401333159,1768143047119,-4000.0,0.00017534,2]
[401333160,1768143047128,-4000.0,0.00017534,2]
[401333161,1768143047138,-4000.0,0.00017534,2]
[401333162,1768143047148,-4500.0,0.00017656,2]
[401333163,1768143047159,-1378.46600243,0.00017656,2]
[401333164,1768143047170,-4500.0,0.00017656,2]
[401333165,1768143047182,-4500.0,0.00017656,2]
[401333166,1768143047192,-3228.00390276,0.00017656,2]
[401333167,1768143047202,-4500.0,0.00017656,2]
[401333168,1768143047212,-157.99,0.000178,2]
[401333169,1768143047223,-400.0,0.00017842,2]
[401333170,1768143047233,-1000.0,0.00017865,2]
[401333171,1768143047243,-1000.0,0.00017865,2]
[401333172,1768143047254,-744.72420012,0.00018056,2]
[401333173,1768143047265,-4500.0,0.00018082,2]
[401333174,1768143047276,-4500.0,0.00018082,2]
[401333175,1768143047288,-4500.0,0.00018082,2]
[401333176,1768143047298,-2642.48470631,0.00018204,2]
[401333177,1768143047308,-4495.04726907,0.00018204,2]
[401333178,1768143047319,-5000.0,0.00018204,2]
[401333179,1768143047328,-5000.0,0.00018204,2]
[401333180,1768143047338,-157.99,0.000183,2]
[401333181,1768143047348,-626.25201,0.00018493,2]
[401333182,1768143047359,-5000.0,0.0001863,2]
[401333183,1768143047370,-5000.0,0.0001863,2]
[401333184,1768143047380,-5000.0,0.0001863,2]
[401333185,1768143047390,-5500.0,0.00018752,2]
[401333186,1768143047400,-2193.54202477,0.00018752,2]
[401333187,1768143047411,-5000.0,0.00018863,2]
[401333188,1768143047421,-157.99,0.000189,2]
[401333189,1768143047435,-303.10001603,0.000189,2]
[401333190,1768143047448,-539.45492606,0.00018987,2]
[401333191,1768143047459,-303.10001603,0.00019089,2]
[401333192,1768143047471,-506.7938,0.00019178,2]
[401333193,1768143047481,-200.0,0.00019178,2]
[401333194,1768143047492,-506.7938,0.00019178,2]
[401333195,1768143047504,-5500.0,0.00019178,2]
[401333196,1768143047514,-1418.97723055,0.00019178,2]
[401333197,1768143047523,-5500.0,0.00019178,2]
[401333198,1768143047534,-13367.01,0.000192,2]
[401333199,1768143047544,-167.58,0.000192,2]
[401333200,1768143047555,-303.10001603,0.00019278,2]
[401333201,1768143047566,-2732.45700431,0.000193,2]
[401333202,1768143047577,-157.99,0.000194,2]
[401333203,1768143047588,-303.10001603,0.00019467,2]
[401333204,1768143047598,-1000.0,0.00019652,2]
[401333205,1768143047608,-1000.0,0.00019652,2]
[401333206,1768143047619,-579.0,0.00019652,2]
[401333207,1768143047629,-303.10001603,0.00019656,2]
[401333208,1768143047640,-2378.23,0.000197,2]
[401333209,1768143047651,-6000.0,0.00019726,2]
[401333210,1768143047661,-5461.92726002,0.00019726,2]
[401333211,1768143047671,-556.3,0.00019762,2]
[401333212,1768143047682,-454.65002405,0.00019845,4]
[401333213,1768143047692,-157.99,0.000199,2]
[401333214,1768143047703,-3176.86810454,0.0001991,2]
[401333215,1768143047713,-506.7938,0.0002,4]
[401333216,1768143047724,-506.7938,0.0002,4]
[401333217,1768143047734,-151.97857558,0.0002,2]
[401333218,1768143047745,-454.65002405,0.00020034,4]
[401333219,1768143047755,-454.65002405,0.00020223,4]
[401333220,1768143047765,-6500.0,0.00020274,2]
[401333221,1768143047775,-157.99,0.000204,2]
[401333222,1768143047786,-506.7938,0.00020411,5]
[401333223,1768143047797,-454.65002405,0.00020412,4]
[401333224,1768143047808,-301.57435521,0.00020601,4]
[401333225,1768143047819,-7000.0,0.00020822,2]
[401333226,1768143047828,-151.0,0.000209,4]
[401333227,1768143047838,-151.0,0.000209,3]
[401333228,1768143047848,-157.99,0.000209,2]
[401333229,1768143047858,-151.0,0.000209,4]
[401333230,1768143047869,-151.0,0.000209,3]
[401333231,1768143047879,-590.56118221,0.00020987,2]
[401333232,1768143047888,-311.0,0.00021005,2]
[401333233,1768143047898,-163.88,0.000211,2]
[401333234,1768143047909,-166.96,0.000211,2]
[401333235,1768143047919,-396.0,0.00021219,2]
[401333236,1768143047929,-556.3,0.00021329,2]
[401333237,1768143047940,-567.54835774,0.0002137,2]
[401333238,1768143047950,-157.99,0.000214,2]
[401333239,1768143047961,-508.0,0.00021431,2]
[401333240,1768143047972,-13367.01,0.000215,2]
[401333241,1768143047983,-1000.0,0.00021617,10]
[401333242,1768143047994,-1000.0,0.00021617,10]
[401333243,1768143048005,-1000.0,0.00021617,10]
[401333244,1768143048015,-281.87,0.00021683,2]
[401333245,1768143048024,-157.99,0.000219,2]
[401333246,1768143048034,-626.25201,0.00021918,2]
[401333247,1768143048044,-152.90727816,0.00021918,2]
[401333248,1768143048053,-157.99,0.000224,2]
[401333249,1768143048063,-556.3,0.00022896,2]
[401333250,1768143048072,-641.66743837,0.00022987,2]
[401333251,1768143048082,-157.99,0.00023,2]
[401333252,1768143048092,-157.99,0.000235,2]
[401333253,1768143048102,-1000.0,0.00023779,10]
[401333254,1768143048112,-1000.0,0.00023779,10]
[401333255,1768143048122,-1000.0,0.00023779,10]
[401333256,1768143048132,-715.0,0.00023779,10]
[401333257,1768143048142,-157.99,0.00024,2]
[401333258,1768143048152,-556.3,0.00024463,2]
[401333259,1768143048162,-157.99,0.000245,2]
[401333260,1768143048172,-500.0,0.00024658,2]
[401333261,1768143048182,-155.5739919,0.00024716,5]
[401333262,1768143048191,-500.0,0.00024795,2]
[401333263,1768143048201,-151.0,0.000249,7]
[401333264,1768143048211,-151.0,0.000249,7]
[401333265,1768143048221,-240.800368,0.000249,7]
[401333266,1768143048235,-151.0,0.000249,7]
[401333267,1768143048251,-170.54126,0.000249,7]
[401333268,1768143048261,-151.0,0.000249,7]
[401333269,1768143048279,-164.871038,0.000249,7]
[401333270,1768143048295,-151.0,0.000249,7]
[401333271,1768143048305,-151.0,0.000249,7]
[401333272,1768143048315,-151.0,0.000249,7]
[401333273,1768143048325,-151.0,0.000249,7]
[401333274,1768143048335,-151.0,0.000249,7]
[401333275,1768143048347,-151.0,0.000249,7]
[401333276,1768143048357,-152.567384,0.000249,7]
[401333277,1768143048367,-349.055387,0.000249,7]
[401333278,1768143048377,-349.055387,0.000249,7]
[401333279,1768143048388,-151.0,0.000249,7]
[401333280,1768143048398,-151.0,0.000249,7]
[401333281,1768143048408,-349.055387,0.000249,7]
[401333282,1768143048418,-151.0,0.000249,7]
[401333283,1768143048428,-161.662681,0.000249,7]
[401333284,1768143048441,-151.0,0.000249,7]
[401333285,1768143048451,-349.055387,0.000249,7]
[401333286,1768143048461,-151.0,0.000249,7]
[401333287,1768143048471,-151.0,0.000249,7]
[401333288,1768143048484,-151.0,0.000249,7]
[401333289,1768143048494,-151.0,0.000249,7]
[401333290,1768143048504,-1638.845663,0.000249,7]
[401333291,1768143048514,-1638.845663,0.000249,7]
[401333292,1768143048524,-1638.845663,0.000249,7]
[401333293,1768143048534,-151.0,0.000249,7]
[401333294,1768143048544,-1638.845663,0.000249,7]
[401333295,1768143048554,-151.0,0.000249,7]
[401333296,1768143048564,-151.0,0.000249,7]
[401333297,1768143048574,-151.0,0.000249,7]
[401333298,1768143048584,-151.0,0.000249,7]
[401333299,1768143048594,-151.0,0.000249,7]
[401333300,1768143048603,-151.0,0.000249,7]
[401333301,1768143048613,-151.0,0.000249,7]
[401333302,1768143048623,-151.0,0.000249,7]
[401333303,1768143048632,-1390.654024,0.000249,7]
[401333304,1768143048642,-1390.654024,0.000249,7]
[401333305,1768143048651,-1390.654024,0.000249,7]
[401333306,1768143048660,-151.0,0.000249,7]
[401333307,1768143048670,-400097.821185,0.000249,2]
[401333308,1768143048679,-728.329358,0.000249,7]
[401333309,1768143048689,-728.329358,0.000249,7]
[401333310,1768143048698,-728.329358,0.000249,7]
[401333311,1768143048707,-728.329358,0.000249,7]
[401333312,1768143048717,-165.523557,0.000249,7]
[401333313,1768143048726,-165.523557,0.000249,7]
[401333314,1768143048737,-151.0,0.000249,7]
[401333315,1768143048747,-165.523557,0.000249,7]
[401333316,1768143048757,-165.523557,0.000249,7]
[401333317,1768143048766,-151.0,0.000249,7]
[401333318,1768143048775,-169.882376,0.000249,7]
[401333319,1768143048785,-500.0,0.00024932,2]
[401333320,1768143048795,-692.77369452,0.00024987,2]
[401333321,1768143048804,-157.99,0.00025,2]
[401333322,1768143048814,-500.0,0.00025069,2]
[401333323,1768143048823,-1000.74,0.000251,7]
[401333324,1768143048832,-250.0,0.00025205,2]
[401333325,1768143048841,-500.0,0.00025206,2]
[401333326,1768143048850,-626.25201,0.00025342,2]
[401333327,1768143048859,-500.0,0.00025343,2]
[401333328,1768143048869,-3176.86810454,0.00025422,2]
[401333329,1768143048967,-500.0,0.0002548,2]
[401333330,1768143048977,-157.99,0.000255,2]
[401333331,1768143048987,-255.99235489,0.00025617,2]
[401333332,1768143048996,-308.77529652,0.00025671,14]
[401333333,1768143049006,-2378.23,0.000257,14]
[401333334,1768143049015,-2000.0,0.00025751,7]
[401333335,1768143049025,-350.0,0.00025753,2]
[401333336,1768143049034,-2026.41544348,0.0002587,2]
[401333337,1768143049043,-13367.01,0.000259,2]
[401333338,1768143049052,-157.99,0.00026,2]
[401333339,1768143049061,-556.3,0.0002603,2]
[401333340,1768143049071,-1000.0,0.00026157,30]